[Event "*** Titled Tuesday Blitz"]
[Site "Chess.com"]
[Date "2018.06.05"]
[Round "6"]
[White "awesomevishesh"]
[Black "SamCopeland"]
[Result "1-0"]
[WhiteElo "2110"]
[BlackElo "2030"]
[TimeControl "180+2"]
[EndTime "14:30:08 PDT"]
[Termination "awesomevishesh won by checkmate"]

1. Nf3 {[%clk 0:03:00.7]} 1... f5 {[%clk 0:02:59.3]} 2. g3 {[%clk 0:02:59.4]}
2... Nf6 {[%clk 0:02:57.3]} 3. Bg2 {[%clk 0:03:00.4]} 3... g6 {[%clk 0:02:57.2]}
4. O-O {[%clk 0:03:00.1]} 4... Bg7 {[%clk 0:02:58.4]} 5. d4 {[%clk 0:03:00.3]}
5... O-O {[%clk 0:02:59.3]} 6. b3 {[%clk 0:03:00.3]} 6... d6 {[%clk 0:02:59.2]}
7. Bb2 {[%clk 0:03:00.5]} 7... a5 {[%clk 0:02:49.3]} 8. c4 {[%clk 0:02:56.2]}
8... Qe8 {[%clk 0:02:41.4]} 9. Nc3 {[%clk 0:02:52.4]} 9... c6 {[%clk 0:02:38.5]}
10. Re1 {[%clk 0:02:39.8]} 10... e5 {[%clk 0:02:33.6]} 11. dxe5 {[%clk
0:02:13.6]} 11... dxe5 {[%clk 0:02:35.5]} 12. Ba3 {[%clk 0:02:04.8]} 12... Rf7
{[%clk 0:02:28.4]} 13. Na4 {[%clk 0:02:04.6]} 13... Rd7 {[%clk 0:01:47.8]} 14.
Qc2 {[%clk 0:02:01.6]} 14... e4 {[%clk 0:01:30.4]} 15. Nb6 {[%clk 0:01:56.6]}
15... exf3 {[%clk 0:01:16.2]} 16. exf3 {[%clk 0:01:56.5]} 16... Qd8 {[%clk
0:01:16.1]} 17. Nxa8 {[%clk 0:01:53.9]} 17... b5 {[%clk 0:01:08.4]} 18. cxb5
{[%clk 0:01:43.1]} 18... Bb7 {[%clk 0:01:04.9]} 19. Qc4+ {[%clk 0:01:19.3]}
19... Kh8 {[%clk 0:01:02.7]} 20. f4 {[%clk 0:00:45.8]} 20... Bxa8 {[%clk
0:00:53.3]} 21. bxc6 {[%clk 0:00:46.4]} 21... Rc7 {[%clk 0:00:40.9]} 22. Rad1
{[%clk 0:00:45.5]} 22... Qc8 {[%clk 0:00:38.2]} 23. Bd6 {[%clk 0:00:38.7]} 23...
Rxc6 {[%clk 0:00:25.5]} 24. Bxc6 {[%clk 0:00:38.1]} 24... Nxc6 {[%clk
0:00:27.1]} 25. Be5 {[%clk 0:00:29.9]} 25... Qb7 {[%clk 0:00:21.6]} 26. Bxf6
{[%clk 0:00:10.8]} 26... Bxf6 {[%clk 0:00:21.4]} 27. Qd5 {[%clk 0:00:10.5]}
27... Nd4 {[%clk 0:00:17.4]} 28. Re8+ {[%clk 0:00:06.3]} 28... Kg7 {[%clk
0:00:16.8]} 29. Rg8+ {[%clk 0:00:04.7]} 29... Kh6 {[%clk 0:00:17.3]} 30. Rxd4
{[%clk 0:00:02.6]} 30... Bxd4 {[%clk 0:00:16]} 31. Qxb7 {[%clk 0:00:03.1]} 31...
Bxb7 {[%clk 0:00:17.9]} 32. Rb8 {[%clk 0:00:03.9]} 32... Be4 {[%clk 0:00:18.1]}
33. Kf1 {[%clk 0:00:04.3]} 33... Kg7 {[%clk 0:00:17]} 34. Ke2 {[%clk 0:00:05.2]}
34... h6 {[%clk 0:00:16.8]} 35. f3 {[%clk 0:00:05.7]} 35... Bc6 {[%clk
0:00:15.4]} 36. a4 {[%clk 0:00:04.4]} 36... Kf6 {[%clk 0:00:08.3]} 37. b4 {[%clk
0:00:04.6]} 37... axb4 {[%clk 0:00:07.7]} 38. Rxb4 {[%clk 0:00:04.7]} 38... Ba7
{[%clk 0:00:05.5]} 39. a5 {[%clk 0:00:05.4]} 39... Ke6 {[%clk 0:00:05.2]} 40. a6
{[%clk 0:00:05.8]} 40... Kd6 {[%clk 0:00:06.4]} 41. Kd3 {[%clk 0:00:06.2]} 41...
Kc5 {[%clk 0:00:07.5]} 42. Rc4+ {[%clk 0:00:05.2]} 42... Kd5 {[%clk 0:00:08.3]}
43. Rc1 {[%clk 0:00:04.9]} 43... Bb5+ {[%clk 0:00:09.3]} 44. Kc3 {[%clk
0:00:05.2]} 44... Bd4+ {[%clk 0:00:10.5]} 45. Kb4 {[%clk 0:00:05.4]} 45... Bxa6
{[%clk 0:00:12.4]} 46. Rc7 {[%clk 0:00:04.8]} 46... Be2 {[%clk 0:00:12.4]} 47.
Rd7+ {[%clk 0:00:05.9]} 47... Ke6 {[%clk 0:00:10.7]} 48. Rxd4 {[%clk 0:00:06.8]}
48... Bxf3 {[%clk 0:00:12]} 49. Kc5 {[%clk 0:00:07.4]} 49... g5 {[%clk
0:00:08.9]} 50. Rd6+ {[%clk 0:00:08.3]} 50... Kf7 {[%clk 0:00:09.5]} 51. Rxh6
{[%clk 0:00:08.8]} 51... gxf4 {[%clk 0:00:11.4]} 52. gxf4 {[%clk 0:00:09.3]}
52... Be4 {[%clk 0:00:12.2]} 53. Kd6 {[%clk 0:00:09.7]} 53... Bc2 {[%clk
0:00:13.2]} 54. Ke5 {[%clk 0:00:10.1]} 54... Bb1 {[%clk 0:00:12.9]} 55. Rf6+
{[%clk 0:00:11]} 55... Kg7 {[%clk 0:00:13.1]} 56. Rxf5 {[%clk 0:00:12.5]} 56...
Bc2 {[%clk 0:00:14.4]} 57. Rg5+ {[%clk 0:00:13.1]} 57... Kf7 {[%clk 0:00:15.8]}
58. h4 {[%clk 0:00:13.5]} 58... Bb1 {[%clk 0:00:16.7]} 59. h5 {[%clk 0:00:14.8]}
59... Bc2 {[%clk 0:00:17.6]} 60. h6 {[%clk 0:00:16]} 60... Bb1 {[%clk
0:00:18.7]} 61. Rg7+ {[%clk 0:00:16.9]} 61... Kf8 {[%clk 0:00:20]} 62. f5 {[%clk
0:00:17.8]} 62... Bc2 {[%clk 0:00:21]} 63. f6 {[%clk 0:00:17.7]} 63... Bb1
{[%clk 0:00:21.7]} 64. h7 {[%clk 0:00:18.2]} 64... Bxh7 {[%clk 0:00:21.6]} 65.
Rxh7 {[%clk 0:00:19.4]} 65... Kg8 {[%clk 0:00:22.9]} 66. Rg7+ {[%clk 0:00:19.8]}
66... Kf8 {[%clk 0:00:24.1]} 67. Ke6 {[%clk 0:00:19.3]} 67... Ke8 {[%clk
0:00:24.9]} 68. Rg8# {[%clk 0:00:20.5]} 1-0

[Event "*** Titled Tuesday Blitz"]
[Site "Chess.com"]
[Date "2018.06.05"]
[Round "6"]
[White "NormWeinstein"]
[Black "Tibmat"]
[Result "1/2-1/2"]
[WhiteElo "2381"]
[BlackElo "2411"]
[TimeControl "180+2"]
[EndTime "14:30:11 PDT"]
[Termination "Game drawn - insufficient material"]

1. e4 {[%clk 0:03:01.4]} 1... c5 {[%clk 0:02:59.3]} 2. Nf3 {[%clk 0:03:01.8]}
2... Nc6 {[%clk 0:03:00.4]} 3. Nc3 {[%clk 0:03:02.6]} 3... e5 {[%clk 0:03:00.9]}
4. Bc4 {[%clk 0:03:02.7]} 4... Be7 {[%clk 0:03:02.3]} 5. d3 {[%clk 0:03:02.9]}
5... Nf6 {[%clk 0:03:03.3]} 6. Ng5 {[%clk 0:03:03.7]} 6... O-O {[%clk
0:03:04.3]} 7. f4 {[%clk 0:03:04.3]} 7... d6 {[%clk 0:03:03.2]} 8. O-O {[%clk
0:03:03.8]} 8... exf4 {[%clk 0:03:00.5]} 9. Bxf4 {[%clk 0:03:03.3]} 9... h6
{[%clk 0:03:02]} 10. Nf3 {[%clk 0:03:03.5]} 10... Be6 {[%clk 0:03:03.5]} 11. Nd5
{[%clk 0:03:03.4]} 11... Nb4 {[%clk 0:03:05.1]} 12. Nxb4 {[%clk 0:02:32.4]}
12... cxb4 {[%clk 0:03:07]} 13. Bxe6 {[%clk 0:02:32.3]} 13... fxe6 {[%clk
0:03:07.9]} 14. Kh1 {[%clk 0:02:32.4]} 14... d5 {[%clk 0:03:07.1]} 15. exd5
{[%clk 0:02:20.9]} 15... Qxd5 {[%clk 0:03:09]} 16. Be5 {[%clk 0:02:16.1]} 16...
Rac8 {[%clk 0:02:54.4]} 17. Qe2 {[%clk 0:02:11.1]} 17... Nd7 {[%clk 0:02:51.7]}
18. c4 {[%clk 0:01:57]} 18... bxc3 {[%clk 0:02:45.6]} 19. Bxc3 {[%clk
0:01:57.1]} 19... Bf6 {[%clk 0:02:37.8]} 20. Bxf6 {[%clk 0:01:44.1]} 20... Rxf6
{[%clk 0:02:39.7]} 21. b3 {[%clk 0:01:37.1]} 21... Rff8 {[%clk 0:02:11.5]} 22.
h3 {[%clk 0:01:36.3]} 22... Rc6 {[%clk 0:02:10.9]} 23. Rae1 {[%clk 0:01:29.1]}
23... Rfc8 {[%clk 0:02:02]} 24. Qe4 {[%clk 0:01:18.5]} 24... Qxe4 {[%clk
0:01:51.9]} 25. Rxe4 {[%clk 0:01:18.9]} 25... Rc1 {[%clk 0:01:53.2]} 26. Kg1
{[%clk 0:01:11.8]} 26... Rxf1+ {[%clk 0:01:49.5]} 27. Kxf1 {[%clk 0:01:12.2]}
27... Kf7 {[%clk 0:01:51.4]} 28. Rc4 {[%clk 0:01:10.6]} 28... Rxc4 {[%clk
0:01:35]} 29. dxc4 {[%clk 0:01:08.4]} 29... e5 {[%clk 0:01:36.5]} 30. Ke2 {[%clk
0:01:08.9]} 30... Ke6 {[%clk 0:01:38.4]} 31. Ke3 {[%clk 0:01:08.6]} 31... b6
{[%clk 0:01:32.4]} 32. Nd2 {[%clk 0:01:08.9]} 32... Nb8 {[%clk 0:01:20.7]} 33.
Ke4 {[%clk 0:01:03.7]} 33... Nd7 {[%clk 0:01:20.2]} 34. b4 {[%clk 0:01:01.3]}
34... a5 {[%clk 0:01:17.7]} 35. a3 {[%clk 0:01:00.7]} 35... axb4 {[%clk
0:01:18.7]} 36. axb4 {[%clk 0:01:01.5]} 36... Nf6+ {[%clk 0:01:08.4]} 37. Ke3
{[%clk 0:01:01.8]} 37... Nd7 {[%clk 0:01:10.3]} 38. Ne4 {[%clk 0:01:00.8]} 38...
Nb8 {[%clk 0:01:10.7]} 39. c5 {[%clk 0:00:54.8]} 39... bxc5 {[%clk 0:01:09.9]}
40. Nxc5+ {[%clk 0:00:55.1]} 40... Kd5 {[%clk 0:01:09.9]} 41. g4 {[%clk
0:00:44]} 41... Nc6 {[%clk 0:01:05.2]} 42. Nd3 {[%clk 0:00:44.3]} 42... Nd4
{[%clk 0:00:53.1]} 43. Ne1 {[%clk 0:00:35.8]} 43... g5 {[%clk 0:00:48]} 44. Nd3
{[%clk 0:00:33.5]} 44... e4 {[%clk 0:00:44.9]} 45. Ne1 {[%clk 0:00:28.8]} 45...
Ke5 {[%clk 0:00:46]} 46. Kd2 {[%clk 0:00:17.8]} 46... Kf4 {[%clk 0:00:43.7]} 47.
Kc3 {[%clk 0:00:12.8]} 47... Nb5+ {[%clk 0:00:32.8]} 48. Kc4 {[%clk 0:00:13.2]}
48... Na3+ {[%clk 0:00:33.3]} 49. Kb3 {[%clk 0:00:13.9]} 49... Nb5 {[%clk
0:00:34.8]} 50. Kc4 {[%clk 0:00:15]} 50... Nc7 {[%clk 0:00:34.9]} 51. Kd4 {[%clk
0:00:12.7]} 51... e3 {[%clk 0:00:16.3]} 52. Ng2+ {[%clk 0:00:12.3]} 52... Kg3
{[%clk 0:00:16.8]} 53. Nxe3 {[%clk 0:00:13.7]} 53... Kxh3 {[%clk 0:00:18.2]} 54.
Kc5 {[%clk 0:00:08.6]} 54... Na6+ {[%clk 0:00:11.1]} 55. Kc4 {[%clk 0:00:09.5]}
55... Nxb4 {[%clk 0:00:11.3]} 56. Kxb4 {[%clk 0:00:10.2]} 56... Kg3 {[%clk
0:00:13.2]} 57. Kc4 {[%clk 0:00:08.4]} 57... Kh4 {[%clk 0:00:12.3]} 58. Kd4
{[%clk 0:00:09.1]} 58... h5 {[%clk 0:00:13.9]} 59. gxh5 {[%clk 0:00:09.4]} 59...
Kxh5 {[%clk 0:00:15.8]} 60. Ke4 {[%clk 0:00:10.4]} 60... Kh4 {[%clk 0:00:17.6]}
61. Kf3 {[%clk 0:00:10]} 61... Kh3 {[%clk 0:00:18.7]} 62. Ng4 {[%clk 0:00:09.9]}
62... Kh4 {[%clk 0:00:20.1]} 63. Nf6 {[%clk 0:00:09.5]} 63... g4+ {[%clk
0:00:22]} 64. Kg2 {[%clk 0:00:07.7]} 64... Kg5 {[%clk 0:00:23]} 65. Ne4+ {[%clk
0:00:08]} 65... Kf4 {[%clk 0:00:24.1]} 66. Nf2 {[%clk 0:00:09]} 66... g3 {[%clk
0:00:25.4]} 67. Nh1 {[%clk 0:00:09.4]} 67... Kg4 {[%clk 0:00:27.2]} 68. Nxg3
{[%clk 0:00:10.1]} 1/2-1/2

[Event "*** Titled Tuesday Blitz"]
[Site "Chess.com"]
[Date "2018.06.05"]
[Round "6"]
[White "Keranke"]
[Black "Micki-taryan"]
[Result "1-0"]
[WhiteElo "2755"]
[BlackElo "2823"]
[TimeControl "180+2"]
[EndTime "14:30:13 PDT"]
[Termination "Keranke won by checkmate"]

1. d4 {[%clk 0:02:59.6]} 1... Nf6 {[%clk 0:03:01.2]} 2. c4 {[%clk 0:03:00.1]}
2... e6 {[%clk 0:03:03.1]} 3. g3 {[%clk 0:03:01.2]} 3... c5 {[%clk 0:03:03.6]}
4. Nf3 {[%clk 0:03:01.7]} 4... cxd4 {[%clk 0:03:03.8]} 5. Nxd4 {[%clk
0:03:03.6]} 5... Bb4+ {[%clk 0:03:05.2]} 6. Nd2 {[%clk 0:03:01.6]} 6... O-O
{[%clk 0:03:04.4]} 7. Bg2 {[%clk 0:03:02]} 7... Nc6 {[%clk 0:03:05.7]} 8. Nc2
{[%clk 0:03:02.6]} 8... Be7 {[%clk 0:03:04.7]} 9. O-O {[%clk 0:03:04.1]} 9... d5
{[%clk 0:03:03.2]} 10. cxd5 {[%clk 0:03:02.6]} 10... Nxd5 {[%clk 0:03:04.1]} 11.
Ne4 {[%clk 0:02:56.5]} 11... b6 {[%clk 0:03:02.8]} 12. Ne3 {[%clk 0:02:51.4]}
12... Bb7 {[%clk 0:02:51.9]} 13. Nxd5 {[%clk 0:02:50.1]} 13... exd5 {[%clk
0:02:53.8]} 14. Nc3 {[%clk 0:02:51.3]} 14... d4 {[%clk 0:02:55]} 15. Nd5 {[%clk
0:02:51.5]} 15... Bc5 {[%clk 0:02:46.5]} 16. a3 {[%clk 0:02:44.3]} 16... a5
{[%clk 0:02:47.4]} 17. b3 {[%clk 0:02:41.2]} 17... Qd7 {[%clk 0:02:46]} 18. Bb2
{[%clk 0:02:38.1]} 18... Rad8 {[%clk 0:02:45.8]} 19. Rc1 {[%clk 0:02:32.4]}
19... Rfe8 {[%clk 0:02:42.9]} 20. Nf4 {[%clk 0:02:28.3]} 20... Ne5 {[%clk
0:02:40.9]} 21. Bxb7 {[%clk 0:02:25.1]} 21... Qxb7 {[%clk 0:02:42.8]} 22. Nd3
{[%clk 0:02:19.1]} 22... Nxd3 {[%clk 0:02:41.1]} 23. Qxd3 {[%clk 0:02:21]} 23...
Qe7 {[%clk 0:02:42.7]} 24. Rc2 {[%clk 0:02:03.7]} 24... h5 {[%clk 0:02:27.6]}
25. a4 {[%clk 0:01:55.1]} 25... h4 {[%clk 0:02:28]} 26. Rd1 {[%clk 0:01:52.7]}
26... Qe6 {[%clk 0:02:21.8]} 27. Qf3 {[%clk 0:01:20.7]} 27... Rd5 {[%clk
0:02:17.1]} 28. Rd3 {[%clk 0:01:16.9]} 28... Rg5 {[%clk 0:02:07.5]} 29. Bxd4
{[%clk 0:01:08.2]} 29... hxg3 {[%clk 0:01:46.2]} 30. hxg3 {[%clk 0:01:06.9]}
30... Rf5 {[%clk 0:01:22.6]} 31. Qg4 {[%clk 0:01:01.4]} 31... Bxd4 {[%clk
0:01:17]} 32. Qxd4 {[%clk 0:01:01.4]} 32... Qh6 {[%clk 0:01:10.8]} 33. Qd7
{[%clk 0:00:56]} 33... Rfe5 {[%clk 0:01:09.4]} 34. Rc8 {[%clk 0:00:54.7]} 34...
Rxc8 {[%clk 0:01:04.1]} 35. Qxc8+ {[%clk 0:00:56.6]} 35... Kh7 {[%clk
0:01:05.7]} 36. Rd8 {[%clk 0:00:55.9]} 36... Qe6 {[%clk 0:01:00.1]} 37. Qxe6
{[%clk 0:00:46.8]} 37... Rxe6 {[%clk 0:01:02]} 38. Kf1 {[%clk 0:00:45.4]} 38...
Rc6 {[%clk 0:01:00]} 39. Rd5 {[%clk 0:00:43.1]} 39... f6 {[%clk 0:00:59]} 40.
Rb5 {[%clk 0:00:43.6]} 40... Kg6 {[%clk 0:01:00.9]} 41. Kg2 {[%clk 0:00:44.6]}
41... Re6 {[%clk 0:01:01.7]} 42. Kf3 {[%clk 0:00:45.4]} 42... Kf7 {[%clk
0:01:03.3]} 43. e4 {[%clk 0:00:46.1]} 43... Rc6 {[%clk 0:01:04.3]} 44. Kg4
{[%clk 0:00:47]} 44... Ke6 {[%clk 0:01:05]} 45. f4 {[%clk 0:00:47.4]} 45... Kf7
{[%clk 0:01:06.3]} 46. Kf5 {[%clk 0:00:40.7]} 46... Rc3 {[%clk 0:00:39.5]} 47.
Rxb6 {[%clk 0:00:27.7]} 47... Rxg3 {[%clk 0:00:40.9]} 48. Rb7+ {[%clk
0:00:28.9]} 48... Kg8 {[%clk 0:00:42.4]} 49. e5 {[%clk 0:00:30.2]} 49... fxe5
{[%clk 0:00:40.2]} 50. fxe5 {[%clk 0:00:32.1]} 50... Re3 {[%clk 0:00:40.4]} 51.
e6 {[%clk 0:00:29]} 51... Kh7 {[%clk 0:00:41.8]} 52. Rb5 {[%clk 0:00:21.6]}
52... Kg8 {[%clk 0:00:12.2]} 53. Rxa5 {[%clk 0:00:19.9]} 53... Re1 {[%clk
0:00:11.1]} 54. Rb5 {[%clk 0:00:16.5]} 54... Kf8 {[%clk 0:00:10.8]} 55. Rb8+
{[%clk 0:00:15]} 55... Ke7 {[%clk 0:00:10.6]} 56. Rb7+ {[%clk 0:00:16.5]} 56...
Kd6 {[%clk 0:00:11.6]} 57. Rxg7 {[%clk 0:00:13.7]} 57... Rf1+ {[%clk 0:00:12.3]}
58. Ke4 {[%clk 0:00:13.9]} 58... Kxe6 {[%clk 0:00:13.9]} 59. Rg6+ {[%clk
0:00:13.8]} 59... Kd7 {[%clk 0:00:15.3]} 60. Kd5 {[%clk 0:00:15.2]} 60... Ra1
{[%clk 0:00:16.7]} 61. Kc4 {[%clk 0:00:16.3]} 61... Kc8 {[%clk 0:00:18.6]} 62.
Kb5 {[%clk 0:00:17.8]} 62... Kb7 {[%clk 0:00:20.1]} 63. Rg7+ {[%clk 0:00:18.6]}
63... Kc8 {[%clk 0:00:21]} 64. b4 {[%clk 0:00:20.1]} 64... Rg1 {[%clk
0:00:22.7]} 65. Rxg1 {[%clk 0:00:18.7]} 65... Kb8 {[%clk 0:00:23.8]} 66. Kc6
{[%clk 0:00:18.5]} 66... Ka8 {[%clk 0:00:25.7]} 67. Kb6 {[%clk 0:00:19.4]} 67...
Kb8 {[%clk 0:00:26.8]} 68. Rg8# {[%clk 0:00:21.3]} 1-0

[Event "*** Titled Tuesday Blitz"]
[Site "Chess.com"]
[Date "2018.06.05"]
[Round "6"]
[White "amiralfio"]
[Black "Slovak_fighter2000"]
[Result "1-0"]
[WhiteElo "2272"]
[BlackElo "2388"]
[TimeControl "180+2"]
[EndTime "14:30:25 PDT"]
[Termination "amiralfio won by resignation"]

1. d4 {[%clk 0:03:01.9]} 1... Nf6 {[%clk 0:02:59.9]} 2. Nf3 {[%clk 0:03:02]}
2... e6 {[%clk 0:02:57.5]} 3. c4 {[%clk 0:03:02.2]} 3... d5 {[%clk 0:02:58]} 4.
Nc3 {[%clk 0:03:02.7]} 4... c5 {[%clk 0:02:58.8]} 5. cxd5 {[%clk 0:03:02.8]}
5... Nxd5 {[%clk 0:03:00.3]} 6. g3 {[%clk 0:03:03.2]} 6... Nc6 {[%clk
0:02:55.9]} 7. Bg2 {[%clk 0:03:01.2]} 7... Nxc3 {[%clk 0:02:57]} 8. bxc3 {[%clk
0:03:01.5]} 8... cxd4 {[%clk 0:02:58.9]} 9. Nxd4 {[%clk 0:02:56]} 9... Nxd4
{[%clk 0:02:56.7]} 10. cxd4 {[%clk 0:02:57.9]} 10... Bb4+ {[%clk 0:02:57.2]} 11.
Bd2 {[%clk 0:02:58.6]} 11... Bxd2+ {[%clk 0:02:55.7]} 12. Qxd2 {[%clk
0:03:00.1]} 12... O-O {[%clk 0:02:57.4]} 13. O-O {[%clk 0:03:00.8]} 13... Rb8
{[%clk 0:02:51.8]} 14. Rac1 {[%clk 0:02:55.6]} 14... b6 {[%clk 0:02:51.9]} 15.
Rfd1 {[%clk 0:02:54.8]} 15... Bb7 {[%clk 0:02:51.9]} 16. e4 {[%clk 0:02:48.2]}
16... Qd6 {[%clk 0:02:48.7]} 17. d5 {[%clk 0:02:31.8]} 17... exd5 {[%clk
0:02:48.9]} 18. exd5 {[%clk 0:02:33.7]} 18... Rbc8 {[%clk 0:02:44.6]} 19. Qe3
{[%clk 0:02:27.6]} 19... g6 {[%clk 0:02:35.5]} 20. h4 {[%clk 0:02:26.1]} 20...
Rfe8 {[%clk 0:02:36.3]} 21. Rxc8 {[%clk 0:02:25.1]} 21... Rxc8 {[%clk 0:02:36]}
22. h5 {[%clk 0:02:25.5]} 22... gxh5 {[%clk 0:01:57.9]} 23. Qg5+ {[%clk
0:02:18.4]} 23... Qg6 {[%clk 0:01:58.2]} 24. Qe5 {[%clk 0:02:17.3]} 24... h4
{[%clk 0:01:46.9]} 25. d6 {[%clk 0:01:32]} 25... Bxg2 {[%clk 0:01:27.7]} 26. d7
{[%clk 0:01:31.3]} 26... Rd8 {[%clk 0:01:21.8]} 27. Qe8+ {[%clk 0:01:25.9]}
27... Kg7 {[%clk 0:01:22.7]} 28. Qxd8 {[%clk 0:01:20.1]} 28... hxg3 {[%clk
0:01:06.9]} 29. f4 {[%clk 0:00:20.8]} 29... h6 {[%clk 0:00:43.8]} 30. Qe7 {[%clk
0:00:15.3]} 30... Qc2 {[%clk 0:00:35.4]} 31. Qe5+ {[%clk 0:00:15.3]} 31... Kg6
{[%clk 0:00:28.1]} 32. f5+ {[%clk 0:00:05.1]} 32... Kh7 {[%clk 0:00:25.5]} 33.
Qd4 {[%clk 0:00:03.5]} 33... Bf3 {[%clk 0:00:21.8]} 34. Qd2 {[%clk 0:00:04.1]}
34... Qc5+ {[%clk 0:00:17.4]} 35. Qd4 {[%clk 0:00:05]} 35... Qc2 {[%clk
0:00:17.2]} 36. Qd2 {[%clk 0:00:06.2]} 36... Qc5+ {[%clk 0:00:17.4]} 37. Qd4
{[%clk 0:00:07.3]} 37... Qc2 {[%clk 0:00:16.6]} 38. Rd2 {[%clk 0:00:07.6]} 38...
Qc1+ {[%clk 0:00:13.1]} 39. Rd1 {[%clk 0:00:08.7]} 39... Bxd1 {[%clk 0:00:11.5]}
40. Kg2 {[%clk 0:00:10]} 40... Qc2+ {[%clk 0:00:09.3]} 41. Kxg3 {[%clk
0:00:11.3]} 41... Qe2 {[%clk 0:00:04.2]} 42. d8=Q {[%clk 0:00:12]} 42... Qf3+
{[%clk 0:00:05.5]} 43. Kh2 {[%clk 0:00:13.3]} 43... Qe2+ {[%clk 0:00:06.1]} 44.
Kg1 {[%clk 0:00:13.9]} 44... Qe1+ {[%clk 0:00:06.9]} 45. Kg2 {[%clk 0:00:14.4]}
45... Qe2+ {[%clk 0:00:08.1]} 46. Qf2 {[%clk 0:00:15.4]} 46... Qg4+ {[%clk
0:00:09]} 47. Qg3 {[%clk 0:00:16.2]} 47... Qe2+ {[%clk 0:00:09.4]} 48. Kg1
{[%clk 0:00:17.5]} 48... Qg4 {[%clk 0:00:03.6]} 49. Qxg4 {[%clk 0:00:18.2]}
49... Bxg4 {[%clk 0:00:05.1]} 50. f6 {[%clk 0:00:18.8]} 50... Kg6 {[%clk
0:00:04.3]} 51. Kf2 {[%clk 0:00:19.9]} 51... Be6 {[%clk 0:00:04.7]} 52. Qc7
{[%clk 0:00:21.1]} 52... Bxa2 {[%clk 0:00:03.8]} 53. Qxa7 {[%clk 0:00:21.5]}
53... Be6 {[%clk 0:00:05]} 54. Qxb6 {[%clk 0:00:22.5]} 54... Kxf6 {[%clk
0:00:06.5]} 55. Kg3 {[%clk 0:00:23.6]} 55... Kg6 {[%clk 0:00:07.8]} 56. Kf4
{[%clk 0:00:24.9]} 56... h5 {[%clk 0:00:08.2]} 57. Qg1+ {[%clk 0:00:25.6]} 57...
Bg4 {[%clk 0:00:08.7]} 58. Qg3 {[%clk 0:00:26.4]} 58... f6 {[%clk 0:00:09.4]}
59. Qd3+ {[%clk 0:00:25.7]} 59... Kg7 {[%clk 0:00:09]} 60. Qd6 {[%clk
0:00:25.7]} 60... Kg6 {[%clk 0:00:09.9]} 61. Qf8 {[%clk 0:00:26.5]} 61... Be6
{[%clk 0:00:06.4]} 62. Qe8+ {[%clk 0:00:27]} 62... Bf7 {[%clk 0:00:07.7]} 63.
Qe4+ {[%clk 0:00:28.3]} 63... Kg7 {[%clk 0:00:08.6]} 64. Qf5 {[%clk 0:00:24.2]}
64... Bg6 {[%clk 0:00:09.1]} 65. Qd7+ {[%clk 0:00:24.7]} 65... Kh6 {[%clk
0:00:09.5]} 66. Qe7 {[%clk 0:00:25.6]} 66... f5 {[%clk 0:00:06.8]} 67. Qf8+
{[%clk 0:00:26.5]} 67... Kh7 {[%clk 0:00:07.7]} 68. Kg5 {[%clk 0:00:27.5]} 68...
h4 {[%clk 0:00:06.7]} 69. Qe7+ {[%clk 0:00:28.6]} 69... Kh8 {[%clk 0:00:07]} 70.
Kxg6 {[%clk 0:00:29.8]} 1-0